bitfinex-derivatives/quotes_ETHF0:USTF0_20250327
["timestamp","ask_amount","ask_price","bid_price","bid_amount"]
[1743094971317,4.20693,2002.1,2002.0,0.00749532]
[1743094971821,5.63203,2002.1,2002.0,0.00749532]
[1743094972018,6.29543,2002.1,2002.0,0.00749532]
[1743094973519,0.99933,2001.7,2001.6,0.99934]
[1743094975018,2.42442,2001.8,2001.7,0.99933]
[1743094975213,0.99932,2001.8,2001.7,0.99933]
[1743094975423,2.49799,2002.0,2001.5,4.57387]
[1743094975622,0.9993,2001.8,2001.7,0.99928]
[1743094975925,0.9993,2001.8,2001.5,4.57387]
[1743094975926,0.99927,2001.9,2001.8,0.99925]
[1743094976126,2.4976,2002.3,2001.7,5.70609]
[1743094976327,0.99921,2002.0,2001.9,0.9992]
[1743094976528,0.99921,2002.0,2001.9,2.4369]
[1743094978129,0.99917,2002.1,2002.0,0.99916]
[1743094978424,0.9991,2002.2,2002.1,0.99909]
[1743094978729,0.99913,2002.1,2002.0,0.716]
[1743094979121,0.99913,2002.1,2002.0,1.71518]
[1743094980421,5.70572,2002.1,2001.8,0.6988]
[1743094980621,0.99922,2002.0,2001.9,0.99918]
[1743094981025,0.99923,2001.9,2001.8,1.69804]
[1743094981621,0.99919,2002.0,2001.9,0.99918]
[1743094981824,0.99923,2001.9,2001.8,0.99923]
[1743094982526,3.2078,2002.1,2001.7,6.35803]
[1743094982721,0.9992,2002.0,2001.9,0.99918]
[1743094982921,0.99916,2002.1,2002.0,0.99918]
[1743094983628,3.2078,2002.4,2001.9,0.66]
[1743094983629,5.70537,2002.4,2001.9,0.66]
[1743094983928,5.70537,2002.4,2002.0,2.0953]
[1743094983929,5.70525,2002.4,2002.0,2.0953]
[1743094984226,0.99912,2002.2,2002.1,0.99911]
[1743094985130,0.9991,2002.2,2002.1,0.99908]
[1743094985426,3.2078,2002.4,2002.0,2.0953]
[1743094985427,0.99907,2002.3,2002.2,0.99904]
[1743094985821,3.2078,2002.4,2002.3,0.99903]
[1743094985822,4.2068,2002.4,2002.3,0.99903]
[1743094986029,0.99907,2002.3,2002.2,0.99904]
[1743094986328,3.2078,2002.4,2002.3,0.99903]
[1743094986329,4.20682,2002.4,2002.3,0.99903]
[1743094986525,3.2078,2002.4,2002.3,0.99903]
[1743094986727,0.00749532,2002.5,2002.4,0.99898]
[1743094987422,3.2078,2002.7,2002.6,0.99888]
[1743094988023,4.20663,2002.7,2002.6,2.35318]
[1743094988224,4.20663,2002.7,2002.6,0.99888]
[1743094988629,3.2078,2002.7,2002.6,0.99888]
[1743094989523,3.2078,2002.7,2002.6,2.35318]
[1743094989930,1.00625532,2002.9,2002.8,0.99878]
[1743094990229,0.99878,2002.8,2002.7,0.99879]
[1743094990527,0.00749532,2002.9,2002.8,0.99878]
[1743094991124,1.00622532,2002.9,2002.8,2.37818]
[1743094991325,0.00749532,2002.9,2002.8,2.37818]
[1743094991724,41.1078,2003.3,2002.9,0.99873]
[1743094991927,1.3888,2003.2,2003.1,0.99863]
[1743094992329,1.3888,2003.2,2003.1,1.66873]
[1743094993331,0.00749532,2003.4,2003.1,1.66873]
[1743094993633,0.00749532,2003.4,2003.3,0.99853]
[1743094994034,3.2078,2003.9,2003.4,2.49619]
[1743094994232,0.99828,2003.8,2003.4,2.49619]
[1743094994430,0.99828,2003.8,2003.6,0.99833]
[1743094994740,1.3451,2003.7,2003.6,0.99833]
[1743094995437,1.3451,2003.7,2003.5,2.0517]
[1743094995438,2.34343,2003.7,2003.5,3.05009]
[1743094995638,1.3451,2003.7,2003.6,0.99838]
[1743094996835,0.00749532,2003.9,2003.8,0.99828]
[1743094997338,1.37739532,2003.9,2003.8,0.99828]
[1743094997736,2.37562532,2003.9,2003.8,0.99828]
[1743094998530,1.37739532,2003.9,2003.8,0.99828]
[1743094998934,2.37562532,2003.9,2003.8,0.99828]
[1743095000237,1.37739532,2003.9,2003.8,0.99828]
[1743095000740,2.37562532,2003.9,2003.8,0.99828]
[1743095000937,1.37739532,2003.9,2003.8,0.99828]
[1743095001736,1.37739532,2003.9,2003.8,4.20608]
[1743095004248,2.37562532,2003.9,2003.8,0.99828]
[1743095004742,1.37739532,2003.9,2003.8,0.99828]
[1743095005642,2.37562532,2003.9,2003.8,0.99828]
[1743095010044,1.37739532,2003.9,2003.8,0.99828]
[1743095010545,2.37562532,2003.9,2003.8,0.99828]
[1743095011041,1.37739532,2003.9,2003.8,0.99828]
[1743095011634,2.37562532,2003.9,2003.8,0.99828]
[1743095013837,1.37739532,2003.9,2003.8,0.99828]
[1743095014039,2.37562532,2003.9,2003.8,0.99828]
[1743095016243,1.37739532,2003.9,2003.8,0.99828]
[1743095016949,0.00749532,2003.9,2003.8,0.99828]
[1743095017145,0.00749532,2003.9,2003.8,4.20608]
[1743095018142,0.00749532,2003.9,2003.8,0.99828]
[1743095018848,1.35259532,2003.9,2003.8,0.99828]
[1743095020850,0.00749532,2003.9,2003.8,4.20608]
[1743095026945,0.00749532,2003.9,2003.8,0.99828]
[1743095027150,1.00572532,2003.9,2003.8,0.99828]
[1743095027451,2.38052532,2003.9,2003.8,0.99828]
[1743095027749,40.28052532,2003.9,2003.8,0.99828]
[1743095027957,40.28052532,2003.9,2003.5,4.78338]
[1743095027958,0.99838,2003.6,2003.5,4.78338]
[1743095028148,0.99838,2003.6,2003.5,0.99838]
[1743095028348,0.99843,2003.5,2003.4,1.00592532]
[1743095028551,1.3159,2003.5,2003.4,1.00594532]
[1743095028750,2.31433,2003.5,2003.4,0.00749532]
[1743095028951,2.31433,2003.5,2003.4,1.00597532]
[1743095029152,2.99903,2003.5,2003.4,1.00597532]
[1743095029457,2.99903,2003.5,2003.4,0.00749532]
[1743095031447,2.0006,2003.5,2003.4,1.00597532]
[1743095031645,2.99903,2003.5,2003.4,1.00597532]
[1743095032654,2.99903,2003.5,2003.4,0.00749532]
[1743095032955,2.99903,2003.5,2003.4,1.00597532]
[1743095033463,2.99903,2003.5,2003.4,0.00749532]
[1743095033662,2.99903,2003.5,2003.4,1.00597532]
[1743095035959,1.3159,2003.5,2003.4,1.00597532]
[1743095036160,0.9983,2003.8,2003.4,2.50368532]
[1743095036359,0.9983,2003.8,2003.7,0.99829]
[1743095036861,0.99836,2003.7,2003.6,0.99835]
[1743095037461,2.42706,2003.7,2003.6,0.99835]
[1743095039872,1.4287,2003.7,2003.6,0.99835]
[1743095040263,1.4287,2003.7,2003.6,4.78335]
[1743095040459,1.4287,2003.7,2003.6,6.11465]
[1743095043769,0.00749532,2003.9,2003.8,0.99828]
[1743095044479,0.00749532,2003.9,2003.8,1.65718]
[1743095044976,1.41489532,2003.9,2003.8,3.01658]
[1743095046073,1.41489532,2003.9,2003.8,1.65718]
[1743095046676,1.41489532,2003.9,2003.8,6.22438]
[1743095048981,0.00749532,2003.9,2003.8,6.22438]
[1743095051276,1.3908,2004.3,2004.2,0.99808]
[1743095051882,1.3908,2004.3,2004.2,1.71778]
[1743095052080,1.3908,2004.3,2004.2,3.14148]
[1743095053674,2.38883,2004.3,2004.2,3.14148]
[1743095054886,1.3908,2004.3,2003.8,6.9928]
[1743095055083,0.9982,2004.0,2003.9,0.99819]
[1743095055390,0.99823,2003.9,2003.8,4.20605]
[1743095055579,2.30712,2004.0,2003.9,0.99823]
[1743095055781,2.30712,2004.0,2003.8,3.2078]
[1743095055782,0.99823,2003.9,2003.8,4.20604]
[1743095056083,2.30713,2003.9,2003.8,4.20604]
[1743095056280,2.30713,2003.9,2003.6,0.99835]
[1743095056281,0.99833,2003.7,2003.6,0.99835]
[1743095056481,1.3089,2003.8,2003.7,0.99833]
[1743095056682,0.99826,2003.9,2003.8,0.99828]
[1743095057078,0.99821,2004.0,2003.9,0.99821]
[1743095057474,4.20596,2004.1,2004.0,0.99818]
[1743095058086,0.99823,2004.0,2003.9,0.99819]
[1743095059781,4.20598,2004.1,2004.0,0.99818]
[1743095063989,0.99822,2004.0,2003.9,0.99818]
[1743095065886,0.99833,2003.7,2003.6,1.66555]
[1743095066087,0.99838,2003.6,2003.5,1.65219]
[1743095068379,0.99838,2003.6,2003.5,0.99839]
[1743095068593,0.99843,2003.5,2003.4,0.72059532]
[1743095068785,0.99843,2003.5,2003.4,0.00749532]
[1743095069692,4.20623,2003.5,2003.4,0.00749532]
[1743095070492,2.49641,2003.3,2002.9,0.99869]
[1743095070788,5.7078,2003.5,2002.7,2.49706]
[1743095070789,2.4967,2003.0,2002.7,2.7346]
[1743095070987,0.99878,2002.8,2002.7,1.3683]
[1743095071893,0.99883,2002.7,2002.5,0.00749532]
[1743095072094,0.99885,2002.7,2002.5,0.00749532]
[1743095072286,3.2078,2002.8,2002.7,0.99883]
[1743095072589,0.00749532,2003.0,2002.9,0.99873]
[1743095073186,0.00749532,2003.0,2002.9,3.06403]
[1743095074296,4.20632,2003.4,2003.3,0.99853]
[1743095074591,0.99854,2003.3,2003.2,0.99855]
[1743095075792,4.20631,2003.4,2003.3,0.99853]
[1743095077193,3.2078,2003.4,2003.3,0.99853]
[1743095077593,4.20628,2003.4,2003.3,0.99853]
[1743095079693,3.2078,2003.4,2003.3,0.99853]
[1743095079898,4.20628,2003.4,2003.3,0.99853]
[1743095080594,4.20628,2003.4,2003.3,2.30063]
[1743095081196,4.20628,2003.4,2003.3,2.97653]
[1743095081601,3.2078,2003.4,2003.3,2.97653]
[1743095083703,3.2078,2003.4,2003.3,0.6759]
[1743095083704,4.20628,2003.4,2003.3,0.6759]
[1743095084410,4.20628,2003.4,2003.3,1.67443]
[1743095086613,3.2078,2003.4,2003.3,1.67443]
[1743095086807,3.2078,2003.4,2003.3,3.05223]
[1743095087506,0.00749532,2003.5,2003.4,0.99848]
[1743095087708,1.00592532,2003.5,2003.4,2.39688]
[1743095088303,0.00749532,2003.5,2003.4,2.39688]
[1743095088709,1.3853,2004.0,2003.9,0.99823]
[1743095088710,0.9982,2004.0,2003.9,0.99823]
[1743095088915,3.2078,2004.1,2004.0,0.99818]
[1743095089213,41.34536196,2004.4,2004.3,0.99803]
[1743095089509,40.34735196,2004.4,2004.3,0.99803]
[1743095090219,1.00538532,2004.6,2004.5,0.99793]
[1743095091208,0.00749532,2004.6,2004.5,0.99793]
[1743095091805,1.40989532,2004.6,2004.5,0.99793]
[1743095092110,1.40989532,2004.6,2004.4,0.99798]
[1743095092314,0.99793,2004.5,2004.4,0.99798]
[1743095092514,2.40780532,2004.6,2004.4,0.99798]
[1743095093103,0.99793,2004.5,2004.4,0.99798]
[1743095093307,2.40033,2004.5,2004.3,0.7104]
[1743095093711,1.4024,2004.5,2004.4,0.99798]
[1743095094714,2.40033,2004.5,2004.4,0.99798]
[1743095095213,1.4024,2004.5,2004.4,0.99798]
[1743095097918,2.40033,2004.5,2004.4,0.99798]
[1743095099313,4.6102,2004.5,2004.3,0.7104]
[1743095099513,0.99808,2004.2,2004.1,0.00749532]
[1743095099714,4.20588,2004.2,2004.1,0.00749532]
[1743095100416,0.99833,2003.7,2003.6,0.99835]
[1743095100608,0.99833,2003.7,2003.5,0.99839]
[1743095100609,0.9984,2003.6,2003.5,0.99839]
[1743095100814,2.4024,2003.6,2003.5,0.99839]
[1743095101622,1.404,2003.6,2003.5,0.99839]
[1743095102422,2.40238,2003.6,2003.5,0.99839]
[1743095103124,3.2078,2003.7,2003.4,0.6523]
[1743095103324,3.2078,2003.7,2003.5,0.99843]
[1743095103325,2.42748,2003.6,2003.5,0.99843]
[1743095103721,2.42748,2003.6,2003.4,3.68145]
[1743095103925,2.42752,2003.6,2003.4,2.34295]
[1743095104116,1.4291,2003.6,2003.5,0.99843]
[1743095104319,2.4275,2003.6,2003.5,0.99843]
[1743095105213,1.4291,2003.6,2003.5,0.99843]
[1743095105614,1.4291,2003.6,2003.5,2.33693]
[1743095106417,2.42748,2003.6,2003.5,2.33693]
[1743095106625,1.4291,2003.6,2003.5,2.33693]
[1743095107414,1.4291,2003.6,2003.5,5.54473]
[1743095107727,3.2078,2004.3,2004.0,0.99817]
[1743095107913,0.99812,2004.2,2004.0,0.99817]
[1743095108225,0.99818,2004.0,2003.9,1.7121]
[1743095108427,0.99823,2003.9,2003.8,0.6976]
[1743095108619,0.99826,2003.9,2003.6,0.7139]
[1743095108819,0.99826,2003.9,2003.8,0.99828]
[1743095109524,3.2078,2004.0,2003.6,0.7139]
[1743095109720,0.99827,2003.9,2003.8,0.99828]
[1743095110121,0.99828,2003.8,2003.7,0.9983]
[1743095110324,0.99848,2003.4,2003.3,1.00602532]
[1743095110621,2.4957,2003.8,2003.3,1.00598532]
[1743095110622,0.99844,2003.5,2003.3,1.00598532]
[1743095110923,1.3324,2003.4,2003.3,1.00598532]
[1743095111122,1.3324,2003.4,2003.3,0.00749532]
[1743095111123,2.33088,2003.4,2003.3,0.00749532]
[1743095111317,4.5402,2003.4,2003.1,0.9986]
[1743095111517,0.99859,2003.2,2003.0,0.99864]
[1743095111724,0.99871,2003.0,2002.8,0.99876]
[1743095111924,1.3364,2002.9,2002.7,2.099]
[1743095112128,1.3364,2002.9,2002.8,0.99878]
[1743095113331,3.2078,2003.4,2002.9,2.49682]
[1743095113527,3.2078,2003.1,2002.8,3.2078]
[1743095113726,0.9987,2003.0,2002.8,4.20657]
[1743095113933,0.9987,2003.0,2002.9,0.99873]
[1743095114326,4.20644,2003.1,2002.9,0.99873]
[1743095114531,1.3364,2003.0,2002.9,0.99873]
[1743095114734,2.33511,2003.0,2002.9,0.99873]
[1743095115825,2.33511,2003.0,2002.8,3.2078]
[1743095115826,0.99873,2002.9,2002.8,4.20655]
[1743095116130,2.39343,2002.9,2002.8,4.20655]
[1743095116730,1.3947,2002.9,2002.8,4.20655]
[1743095116933,2.39343,2002.9,2002.8,4.20655]
[1743095117133,1.3947,2002.9,2002.8,4.20655]
[1743095117329,2.39343,2002.9,2002.8,4.20655]
[1743095118932,2.39343,2002.9,2002.8,5.64095]
[1743095119727,1.3947,2002.9,2002.8,5.64095]
[1743095119928,0.67179532,2003.6,2003.5,0.99843]
[1743095119929,0.00749532,2003.6,2003.5,0.99843]
[1743095121335,0.00749532,2003.6,2003.5,2.33433]
[1743095124142,3.2078,2004.1,2004.0,0.99818]
[1743095124835,4.20593,2004.1,2004.0,0.99818]
[1743095125034,0.99818,2004.0,2003.9,3.69858]
[1743095125231,0.99818,2004.0,2003.8,0.00749532]
[1743095125232,1.3426,2004.0,2003.8,0.00749532]
[1743095125534,0.99823,2003.9,2003.8,0.00749532]
[1743095125737,1.67263,2003.9,2003.8,0.00749532]
[1743095125933,43.41523,2003.9,2003.8,0.00749532]
[1743095126238,0.99838,2003.6,2003.5,5.952]
[1743095126435,0.99843,2003.5,2003.4,0.99845]
[1743095126841,4.20621,2003.6,2003.5,0.99843]
[1743095127231,0.99846,2003.5,2003.4,0.99844]
[1743095128334,0.99848,2003.5,2003.4,0.99846]
[1743095129234,2.30908,2003.5,2003.4,0.99846]
[1743095129543,2.30903,2003.5,2003.4,0.99846]
[1743095130941,0.99848,2003.4,2003.3,1.00597532]
[1743095131240,1.4188,2003.4,2003.3,1.00597532]
[1743095131539,2.41728,2003.4,2003.3,1.00597532]
[1743095131741,1.4188,2003.4,2003.3,1.00597532]
[1743095135145,1.4188,2003.4,2003.3,4.21377532]
[1743095135350,0.99829,2003.8,2003.7,0.99833]
[1743095135845,0.99833,2003.7,2003.6,1.68194]
[1743095137243,0.99845,2003.5,2003.4,0.99842]
[1743095140046,0.99848,2003.4,2003.3,0.00749532]
[1743095140250,0.99863,2003.1,2003.0,0.99868]
[1743095140444,4.20643,2003.1,2003.0,0.99868]
[1743095140951,0.99873,2002.9,2002.8,1.65494]
[1743095141154,2.39031,2003.0,2002.9,0.99873]
[1743095141454,0.99873,2002.9,2002.8,1.65497]
[1743095141646,2.39033,2002.9,2002.8,1.65497]
[1743095142049,0.99878,2002.8,2002.7,1.71029]
[1743095142246,2.32248,2002.8,2002.7,0.7115]
[1743095142447,5.53028,2002.8,2002.7,0.7115]
[1743095142643,0.99883,2002.7,2002.6,0.00749532]
[1743095142847,2.32253,2002.7,2002.6,0.00749532]
[1743095143057,3.02563,2002.7,2002.6,0.00749532]
[1743095143444,0.99908,2002.2,2002.1,2.34868]
[1743095143657,0.99907,2002.3,2002.1,2.34868]
[1743095143948,0.99908,2002.2,2002.1,2.34871]
[1743095144152,1.3237,2002.2,2002.1,2.34871]
[1743095144354,2.32278,2002.2,2002.1,2.34871]
[1743095144649,2.32278,2002.2,2002.0,0.6817]
[1743095144650,0.99913,2002.1,2002.0,0.6817]
[1743095144849,0.99918,2002.0,2001.9,0.00749532]
[1743095145245,2.31228,2002.0,2001.9,0.00749532]
[1743095145740,2.31228,2002.0,2001.2,5.952]
[1743095145741,0.9994,2001.6,2001.2,7.3872]
[1743095145940,1.3131,2001.5,2001.4,0.99944]
[1743095146556,1.3131,2001.5,2001.2,7.3872]
[1743095147053,1.3131,2001.5,2001.4,0.99948]
[1743095148046,0.00749532,2001.6,2001.5,0.99943]
[1743095148453,1.44239532,2001.6,2001.5,0.99943]
[1743095149753,1.44239532,2001.6,2001.4,1.4352]
[1743095149959,1.44239532,2001.6,2001.4,2.43464]
[1743095150145,1.44239532,2001.6,2001.5,0.99943]
[1743095150350,1.44239532,2001.6,2001.5,2.32333]
[1743095155467,3.2078,2002.3,2002.0,0.99915]
[1743095155760,1.443,2001.9,2001.8,0.99928]
[1743095155961,1.443,2001.9,2001.8,2.30558]
[1743095156761,0.00749532,2002.1,2002.0,0.99918]
[1743095156964,1.45049532,2002.1,2002.0,0.99918]
[1743095160475,1.45049532,2002.1,2001.9,0.9992]
[1743095160766,3.2078,2002.0,2001.8,0.99926]
[1743095161065,2.32747,2001.9,2001.7,1.66969]
[1743095161270,2.32745,2001.9,2001.8,0.99928]
[1743095161468,1.3282,2001.9,2001.8,0.99928]
[1743095163062,1.3282,2001.9,2001.8,2.33628]
[1743095164260,0.00749532,2002.1,2002.0,0.99918]
[1743095167667,1.41769532,2002.1,2002.0,0.99918]
[1743095168774,2.41682532,2002.1,2002.0,0.99918]
[1743095169160,0.99925,2001.9,2001.8,0.99924]
[1743095169360,4.20701,2002.0,2001.9,0.99923]
[1743095169575,1.4378,2002.0,2001.9,0.99923]
[1743095170770,2.43698,2002.0,2001.9,0.99923]
[1743095171074,0.99926,2001.9,2001.8,0.99924]
[1743095171272,2.43706,2001.9,2001.8,0.99924]
[1743095172479,1.4378,2001.9,2001.8,0.99924]
[1743095173479,1.4378,2001.9,2001.8,2.38994]
[1743095174280,1.4378,2001.9,2001.8,0.99924]
[1743095174281,2.43703,2001.9,2001.8,0.99924]
[1743095174577,1.4378,2001.9,2001.8,0.99924]
[1743095175975,0.99928,2001.8,2001.7,1.66968]
[1743095176181,2.43705,2001.9,2001.8,0.99928]
[1743095176675,1.4378,2001.9,2001.8,0.99928]
[1743095177173,1.4378,2001.9,2001.8,2.44238]
[1743095177970,0.00749532,2002.1,2002.0,0.99918]
[1743095178170,0.00749532,2002.1,2002.0,4.20698]
[1743095179477,3.2078,2002.6,2002.5,0.99893]
[1743095179674,4.20669,2002.6,2002.5,0.99893]
[1743095179874,4.20668,2002.6,2002.5,0.99893]
[1743095180876,5.55388,2002.6,2002.5,0.99893]
[1743095181883,1.3472,2002.6,2002.5,0.99893]
[1743095183685,2.34608,2002.6,2002.5,0.99893]
[1743095184483,0.99893,2002.5,2002.4,1.68273]
[1743095184675,2.33703,2002.5,2002.4,1.68273]
[1743095184882,1.3381,2002.5,2002.4,1.68273]
[1743095185083,2.33703,2002.5,2002.4,1.68273]
[1743095185887,1.3381,2002.5,2002.3,0.00749532]
[1743095186191,2.33707,2002.5,2002.4,0.99898]
[1743095186386,2.33707,2002.5,2002.3,0.00749532]
[1743095186387,0.99898,2002.4,2002.3,0.00749532]
[1743095186690,2.42458,2002.4,2002.3,0.00749532]
[1743095187792,2.42458,2002.4,2002.3,1.00652532]
[1743095188694,1.4256,2002.4,2002.3,1.00652532]
[1743095189593,2.42458,2002.4,2002.3,1.00652532]
[1743095191791,2.42458,2002.4,2002.3,0.00749532]
[1743095192189,2.42458,2002.4,2002.3,1.00652532]
[1743095192495,2.42458,2002.4,2002.3,0.00749532]
[1743095192892,2.42458,2002.4,2002.3,1.00652532]
[1743095193595,2.42458,2002.4,2002.3,0.00749532]
[1743095193789,2.42458,2002.4,2002.3,1.00652532]
[1743095194787,1.4256,2002.4,2002.3,1.00652532]
[1743095195099,1.4256,2002.4,2002.3,4.21432532]
[1743095195490,0.99885,2002.7,2002.6,0.99888]
[1743095195691,2.32365,2002.7,2002.6,0.99888]
[1743095196998,1.3248,2002.7,2002.6,0.99888]
[1743095197193,1.3248,2002.7,2002.6,1.65228]
[1743095199401,0.00749532,2002.8,2002.7,0.99883]
[1743095199592,0.00749532,2002.8,2002.7,2.44173]
[1743095202697,20.64802768,2003.4,2002.7,2.44173]
[1743095202698,1.3515,2003.1,2003.0,0.99868]
[1743095202906,19.22532768,2003.4,2003.3,0.99853]
[1743095203201,20.64882768,2003.4,2003.3,0.99853]
[1743095204401,1.4235,2003.4,2003.3,0.99853]
[1743095205807,3.2078,2003.5,2003.4,0.99848]
[1743095206005,4.6313,2003.5,2003.4,0.99848]
[1743095206200,1.4235,2003.5,2003.4,0.99848]
[1743095206605,19.22532768,2003.8,2003.5,0.99843]
[1743095206798,19.22532768,2003.8,2003.7,4.20613]
[1743095207201,19.22532768,2003.8,2003.7,10.15813]
[1743095207706,19.22532768,2003.8,2003.7,12.65813]
[1743095207908,19.18785108,2003.8,2003.7,12.65813]
[1743095208711,0.00749532,2004.0,2003.9,0.99823]
[1743095213010,5.32e-06,2004.0,2003.9,9.45023]
[1743095216111,5.32e-06,2004.0,2003.9,6.95023]
[1743095222111,1.30640532,2004.0,2003.9,6.95023]
[1743095222919,2.30458532,2004.0,2003.9,6.95023]
[1743095223114,1.30640532,2004.0,2003.9,6.95023]
[1743095223904,1.30640532,2004.0,2003.9,8.25983]
[1743095234523,5.32e-06,2004.0,2003.9,10.75983]
[1743095235622,5.32e-06,2004.0,2003.9,12.20653543]
[1743095238521,1.3961,2004.4,2004.3,0.99803]
[1743095238824,1.3961,2004.4,2004.3,4.20583]
[1743095243919,1.3961,2004.4,2004.3,6.29233]
[1743095244327,1.3961,2004.4,2004.3,4.89143]
[1743095244830,1.3961,2004.4,2004.3,4.20583]
[1743095245816,1.3961,2004.4,2004.2,6.95005]
[1743095246026,1.3961,2004.4,2004.3,0.99803]
[1743095246027,2.39409,2004.4,2004.3,0.99803]
[1743095246222,1.3961,2004.4,2004.3,0.99803]
[1743095246421,2.39408,2004.4,2004.3,0.99803]
[1743095246622,2.39408,2004.4,2004.2,6.95004]
[1743095246822,1.3043,2004.3,2004.2,6.95004]
[1743095247426,2.30233,2004.3,2004.2,6.95004]
[1743095247620,1.3043,2004.3,2004.2,6.95004]
[1743095248016,1.3043,2004.3,2004.2,0.99804]
[1743095251435,0.99809,2004.2,2004.1,0.99811]
[1743095251728,3.2078,2004.2,2003.5,0.00749532]
[1743095251933,3.2078,2003.9,2003.6,0.99838]
[1743095252136,1.3942,2003.8,2003.7,0.99833]
[1743095255037,1.3942,2003.8,2003.5,1.00590532]
[1743095255229,0.99838,2003.6,2003.5,0.00749532]
[1743095255527,2.33616,2003.7,2003.5,1.00589532]
[1743095255730,1.3555,2003.6,2003.5,1.00589532]
[1743095257836,0.6632,2004.0,2003.9,0.99823]
[1743095258032,0.6765,2004.2,2004.1,0.99813]
[1743095258223,1.3436,2004.5,2004.4,0.99796]
[1743095258428,1.3436,2004.5,2004.1,3.2078]
[1743095258725,1.3436,2004.5,2003.9,8.44758]
[1743095258726,0.99802,2004.4,2004.2,0.99808]
[1743095259133,1.4247,2004.3,2004.2,0.99808]
[1743095259632,2.42273,2004.3,2004.1,0.9981]
[1743095259940,2.42275,2004.3,2004.1,0.9981]
[1743095260140,1.4247,2004.2,2004.1,0.9981]
[1743095260435,1.4247,2004.2,2004.1,4.2059]
[1743095265843,2.42278,2004.2,2004.1,3.2078]
[1743095266046,2.42278,2004.2,2004.1,4.20593]
[1743095266247,1.4247,2004.2,2004.1,4.20593]
[1743095266749,2.42278,2004.2,2004.1,4.20593]
[1743095268151,2.42278,2004.2,2004.1,3.2078]
[1743095269046,2.42278,2004.2,2004.1,4.20593]
[1743095269348,1.4247,2004.2,2004.1,4.20593]
[1743095270551,2.42278,2004.2,2004.1,4.20593]
[1743095270742,2.42278,2004.2,2004.1,3.2078]
[1743095271050,2.42278,2004.2,2004.1,4.20593]
[1743095271245,2.42278,2004.2,2004.1,3.2078]
[1743095272450,2.42278,2004.2,2004.1,4.20593]
[1743095272751,2.42278,2004.2,2004.1,3.2078]
[1743095273050,0.99818,2004.0,2003.9,0.99823]
[1743095273250,2.36996,2004.1,2004.0,0.99818]
[1743095273549,1.3718,2004.1,2004.0,0.99818]
[1743095274150,2.36993,2004.1,2004.0,0.99818]
[1743095274350,0.99818,2004.0,2003.9,2.30509]
[1743095274554,1.3718,2004.0,2003.9,2.30509]
[1743095275251,1.3718,2004.0,2003.9,0.99819]
[1743095275753,2.36998,2004.0,2003.9,0.99819]
[1743095276149,1.3718,2004.0,2003.9,0.99819]
[1743095276754,1.3718,2004.0,2003.9,2.33089]
[1743095281350,4.20585,2004.3,2004.2,0.99808]
[1743095281545,1.3384,2004.4,2004.3,0.99803]
[1743095282351,1.3384,2004.4,2004.3,2.33603]
[1743095282662,2.33638,2004.4,2004.3,2.33603]
[1743095284354,1.3384,2004.4,2004.3,2.33603]
[1743095285160,19.23469296,2004.5,2004.4,0.99798]
[1743095285462,20.54639296,2004.5,2004.4,2.33508]
[1743095286877,20.54639296,2004.5,2004.3,0.99799]
[1743095287066,3.21529532,2004.6,2004.3,0.99799]
[1743095287067,1.3117,2004.4,2004.3,0.99799]
[1743095287467,1.3117,2004.4,2004.2,1.64978]
[1743095287468,0.99803,2004.3,2004.2,1.64978]
[1743095287862,1.3117,2004.4,2004.1,3.2078]
[1743095287863,0.99808,2004.2,2004.1,3.2078]
[1743095288069,2.37318,2004.2,2004.1,3.2078]
[1743095288969,1.3751,2004.2,2003.9,0.6613]
[1743095289173,0.99823,2003.9,2003.8,0.72]
[1743095289373,0.99826,2003.9,2003.7,4.20612]
[1743095289567,1.3751,2003.8,2003.7,4.20612]
[1743095289969,2.37338,2003.8,2003.7,2.36462]
[1743095290167,2.37338,2003.8,2003.6,1.3519]
[1743095290168,0.99833,2003.7,2003.6,0.6613]
[1743095290363,1.3751,2003.7,2003.5,0.00749532]
[1743095290677,0.99838,2003.6,2003.5,0.00749532]
[1743095291064,2.40228,2003.6,2003.5,0.00749532]
[1743095291669,0.99852,2003.4,2003.2,0.99854]
[1743095291870,1.4039,2003.3,2003.2,0.99854]
[1743095292172,0.99858,2003.2,2003.0,3.2078]
[1743095292470,0.99856,2003.3,2003.1,0.9986]
[1743095292974,3.21529532,2003.4,2003.0,3.21529532]
[1743095293271,3.21529532,2003.4,2003.1,2.4282]
[1743095293473,0.99854,2003.3,2003.1,2.4282]
[1743095293881,0.99854,2003.3,2003.1,1.4296]
[1743095294081,0.99854,2003.3,2003.1,2.4282]
[1743095294476,0.99858,2003.2,2003.0,4.21393532]
[1743095294872,0.99863,2003.1,2003.0,0.00749532]
[1743095295376,4.20643,2003.1,2003.0,0.00749532]
[1743095295674,4.20643,2003.1,2002.4,5.952]
[1743095295675,8.20439,2003.1,2002.4,5.952]
[1743095295877,3.2078,2002.8,2002.4,7.9716]
[1743095296077,3.2078,2002.8,2002.4,8.97057]
[1743095296078,0.9989,2002.6,2002.4,8.97057]
[1743095296372,3.2078,2002.8,2002.4,0.6812]
[1743095296682,0.99884,2002.7,2002.5,0.99891]
[1743095296873,4.20661,2002.8,2002.5,0.99891]
[1743095297069,4.20661,2002.8,2002.6,0.99886]
[1743095297380,3.2078,2002.8,2002.5,1.3384]
[1743095297571,0.99884,2002.7,2002.5,2.33728]
[1743095297772,0.99884,2002.7,2002.6,0.99888]
[1743095298179,4.20661,2002.8,2002.6,0.99884]
[1743095298477,4.20661,2002.8,2002.5,1.3384]
[1743095298478,3.2078,2002.8,2002.5,1.3384]
[1743095298676,3.2078,2002.8,2002.6,0.99885]